bitfinex/quotes_ETHUSD_20250331
["timestamp","ask_amount","ask_price","bid_price","bid_amount"]
[1743405858944,0.1,1802.9,1802.8,11.41292]
[1743405859111,0.1,1802.9,1802.8,11.96292]
[1743405860340,0.1,1802.9,1802.8,11.41292]
[1743405860747,0.1,1802.9,1802.8,5.869]
[1743405860921,8.64671,1802.9,1802.8,5.869]
[1743405862026,14.19363,1802.9,1802.7,5.864]
[1743405862224,5.54692,1802.8,1802.7,5.864]
[1743405864241,3.7853,1802.7,1802.3,0.817]
[1743405864431,5.54754,1802.6,1802.4,5.85]
[1743405864639,11.09527,1802.6,1802.4,5.85]
[1743405864837,5.54785,1802.5,1802.4,5.85]
[1743405865417,10.74456953,1802.6,1802.4,5.85]
[1743405865612,5.54754,1802.6,1802.4,5.85]
[1743405868555,9.33258,1802.7,1802.4,11.39806]
[1743405868556,3.0,1802.7,1802.4,11.39806]
[1743405868753,3.0,1802.7,1802.4,11.39805]
[1743405869352,8.54724,1802.7,1802.4,11.39805]
[1743405869851,14.09468,1802.7,1802.4,5.85]
[1743405870058,5.54785,1802.5,1802.4,5.85]
[1743405870222,6.36354,1802.6,1802.4,5.85]
[1743405870422,5.54754,1802.6,1802.4,5.85]
[1743405871231,8.5473,1802.7,1802.4,11.39798]
[1743405871430,8.5473,1802.7,1802.4,16.94599]
[1743405871633,8.5473,1802.7,1802.4,11.39798]
[1743405872259,8.5473,1802.7,1802.4,16.94598]
[1743405872466,8.5473,1802.7,1802.4,11.39798]
[1743405872669,5.54762,1802.6,1802.4,5.85]
[1743405873168,5.54826,1802.4,1802.1,6.36607]
[1743405873359,5.54785,1802.5,1802.2,11.36367]
[1743405873742,11.09587,1802.5,1802.2,5.815]
[1743405873943,5.54834,1802.4,1802.2,5.815]
[1743405874247,5.5479,1802.5,1802.1,11.91492]
[1743405874451,11.0959,1802.5,1802.3,5.808]
[1743405874632,7.17719295,1802.5,1802.3,5.808]
[1743405874833,5.54815,1802.4,1802.3,5.808]
[1743405875365,1.62929295,1802.5,1802.3,5.808]
[1743405875562,10.55805095,1802.7,1802.3,5.808]
[1743405875866,10.55805095,1802.7,1802.4,5.54803]
[1743405876165,16.10543095,1802.7,1802.4,5.54803]
[1743405876328,5.01073095,1802.7,1802.4,5.54802]
[1743405876528,3.0,1802.7,1802.3,5.808]
[1743405876734,3.0,1802.7,1802.6,5.54754]
[1743405877038,0.1,1802.9,1802.7,5.54716]
[1743405877368,0.1,1802.9,1802.8,12.66602]
[1743405877663,0.1,1802.9,1802.8,59.18802]
[1743405878541,0.1,1802.9,1802.8,53.39002]
[1743405878741,0.1,1802.9,1802.8,59.19402]
[1743405879350,0.1,1802.9,1802.8,53.39002]
[1743405879658,0.1,1802.9,1802.8,59.18802]
[1743405880365,0.1,1802.9,1802.8,59.59541793]
[1743405880571,0.1,1802.9,1802.8,59.18702]
[1743405882068,0.1,1802.9,1802.8,44.68702]
[1743405883269,0.1,1802.9,1802.8,59.18702]
[1743405883460,0.1,1802.9,1802.8,59.60888483]
[1743405884137,0.1,1802.9,1802.8,59.59088483]
[1743405884566,0.1,1802.9,1802.8,59.16902]
[1743405885239,0.1,1802.9,1802.8,44.66902]
[1743405885776,0.1,1802.9,1802.8,59.16902]
[1743405892758,0.1,1802.9,1802.8,44.66902]
[1743405893575,0.1,1802.9,1802.8,38.34002]
[1743405893779,0.1,1802.9,1802.8,37.56892]
[1743405893983,0.1,1802.9,1802.8,43.29692]
[1743405894145,0.1,1802.9,1802.8,43.84692]
[1743405894689,0.1,1802.9,1802.8,38.11892]
[1743405894892,0.1,1802.9,1802.8,43.84692]
[1743405895370,0.1,1802.9,1802.8,37.56892]
[1743405895888,0.1,1802.9,1802.8,43.29392]
[1743405896258,0.1,1802.9,1802.8,37.747]
[1743405896459,0.1,1802.9,1802.8,43.29392]
[1743405896889,0.1,1802.9,1802.8,37.747]
[1743405897686,5.64661,1802.9,1802.8,32.022]
[1743405897901,5.54742,1802.7,1802.3,5.54818]
[1743405898204,5.54742,1802.7,1802.4,11.26706]
[1743405898689,9.33804,1802.6,1802.5,5.717]
[1743405899176,9.33804,1802.6,1802.2,5.54873]
[1743405899385,9.33804,1802.6,1802.3,5.715]
[1743405899756,9.33804,1802.6,1802.3,11.26344]
[1743405899951,3.7904,1802.6,1802.3,11.26336]
[1743405900180,3.7904,1802.6,1802.3,11.26332]
[1743405900459,6.94039,1802.9,1802.7,5.54711]
[1743405900683,3.8904,1802.9,1802.8,5.715]
[1743405900884,0.1,1802.9,1802.8,11.26192]
[1743405901081,0.1,1802.9,1802.8,11.81192]
[1743405901387,0.1,1802.9,1802.8,26.31192]
[1743405904366,0.1,1802.9,1802.8,27.11542]
[1743405905301,0.1,1802.9,1802.8,27.12542]
[1743405907913,6.04999,1803.8,1803.6,5.54422]
[1743405907914,0.7904,1803.8,1803.6,5.54422]
[1743405908070,0.7904,1803.8,1803.7,5.722]
[1743405908270,0.1,1803.9,1803.7,11.26615]
[1743405908501,0.1,1803.9,1803.7,11.26604]
[1743405908680,0.1,1803.9,1803.7,16.81004]
[1743405909310,0.1,1803.9,1803.7,11.266]
[1743405909552,5.64357,1803.9,1803.7,5.722]
[1743405910069,7.141295,1803.9,1803.7,5.722]
[1743405910276,0.1,1803.9,1803.7,5.722]
[1743405910810,0.1,1803.9,1803.7,11.26602]
[1743405911530,0.1,1803.9,1803.7,11.26609]
[1743405912700,0.1,1803.9,1803.7,5.722]
[1743405913592,0.1,1803.9,1803.7,11.26598]
[1743405913791,0.1,1803.9,1803.8,6.09385]
[1743405915632,0.1,1803.9,1803.7,11.26598]
[1743405915856,0.1,1803.9,1803.7,16.81]
[1743405916041,0.1,1803.9,1803.8,5.54385]
[1743405916755,0.1,1803.9,1803.7,5.54398]
[1743405916921,0.1,1803.9,1803.8,5.704]
[1743405917321,0.1,1803.9,1803.8,11.24785]
[1743405917520,0.1,1803.9,1803.8,5.704]
[1743405917731,5.64354,1803.9,1803.8,5.704]
[1743405917946,6.46124,1803.9,1803.8,5.704]
[1743405918119,5.54389,1803.8,1803.5,5.5447]
[1743405918317,5.54389,1803.8,1803.6,5.697]
[1743405918521,13.56454486,1803.9,1803.6,5.697]
[1743405918751,8.02077486,1803.9,1803.6,5.697]
[1743405918940,6.36266,1803.5,1803.1,38.31094]
[1743405919147,0.8177,1803.5,1803.2,11.24455]
[1743405919657,6.36247,1803.5,1803.2,11.24455]
[1743405920151,0.8177,1803.5,1803.3,5.54532]
[1743405920352,0.8177,1803.5,1803.3,5.54524]
[1743405920856,6.36248,1803.5,1803.2,11.24465]
[1743405921068,0.8177,1803.5,1803.3,5.54538]
[1743405921230,0.8177,1803.5,1803.2,5.699]
[1743405921433,6.36257,1803.5,1803.2,11.24465]
[1743405922032,5.54552,1803.3,1803.1,32.01]
[1743405922240,5.54552,1803.3,1803.2,5.685]
[1743405922435,5.54514,1803.4,1803.2,5.685]
[1743405922671,5.54538,1803.3,1803.2,5.685]
[1743405922964,0.8177,1803.2,1803.1,32.01]
[1743405923139,0.8177,1803.2,1803.1,37.697]
[1743405923776,6.36339,1803.2,1803.1,37.697]
[1743405924184,5.54511,1803.4,1803.1,37.697]
[1743405924485,5.54541,1803.3,1803.1,37.697]
[1743405924849,3.0,1803.4,1803.1,37.697]
[1743405925049,3.0,1803.4,1803.1,48.78871]
[1743405925363,8.54511,1803.4,1803.1,37.697]
[1743405925569,14.09035,1803.4,1803.1,37.697]
[1743405925865,17.1289573,1803.4,1803.1,37.697]
[1743405926063,11.5837173,1803.4,1803.1,43.24296]
[1743405926251,17.1290873,1803.4,1803.1,37.697]
[1743405926432,0.914,1803.9,1803.2,1.3223]
[1743405926634,0.914,1803.9,1803.3,5.54538]
[1743405926834,0.1,1803.9,1803.8,6.09385]
[1743405927034,0.1,1803.9,1803.8,11.78485]
[1743405927839,0.1,1803.9,1803.8,11.23485]
[1743405928545,0.1,1803.9,1803.8,5.691]
[1743405929086,3.1,1803.9,1803.8,5.691]
[1743405929657,8.64354,1803.9,1803.8,5.691]
[1743405930648,3.1,1803.9,1803.8,5.691]
[1743405931185,8.64354,1803.9,1803.8,5.691]
[1743405931386,3.1,1803.9,1803.8,5.691]
[1743405932490,8.64354,1803.9,1803.8,5.691]
[1743405932643,3.1,1803.9,1803.8,5.691]
[1743405934192,8.64354,1803.9,1803.8,5.691]
[1743405934353,10.50255067,1803.9,1803.8,5.691]
[1743405934795,5.54431,1803.7,1803.3,6.34313]
[1743405935098,5.54431,1803.7,1803.3,6.34303]
[1743405935255,6.35987,1803.6,1803.4,5.663]
[1743405935758,5.54517,1803.4,1803.1,38.35369]
[1743405935958,8.54491,1803.5,1803.2,5.66]
[1743405936167,14.08989,1803.5,1803.2,5.66]
[1743405936368,5.54509,1803.4,1803.2,5.66]
[1743405936952,5.54538,1803.3,1803.2,5.66]
[1743405937276,5.54538,1803.3,1803.2,5.657]
[1743405937864,9.13323665,1803.4,1803.2,5.657]
[1743405938786,14.67855665,1803.4,1803.2,5.657]
[1743405939283,3.58814665,1803.4,1803.2,5.657]
[1743405939478,11.09059,1803.4,1803.2,5.657]
[1743405939676,5.54525,1803.4,1803.2,5.657]
[1743405940058,11.09053,1803.4,1803.2,5.657]
[1743405940258,5.54525,1803.4,1803.2,5.657]
[1743405940456,5.54538,1803.3,1803.2,5.657]
[1743405940671,14.08974,1803.5,1803.2,5.657]
[1743405940888,5.54516,1803.4,1803.2,5.657]
[1743405941691,11.09043,1803.4,1803.2,5.657]
[1743405941898,5.54538,1803.3,1803.2,5.657]
[1743405942070,10.51326047,1803.5,1803.2,5.657]
[1743405942397,16.05821047,1803.5,1803.2,11.20267]
[1743405942575,16.05821047,1803.5,1803.2,5.657]
[1743405943200,5.54517,1803.4,1803.2,5.657]
[1743405943387,5.54538,1803.3,1803.2,5.657]
[1743405943583,5.54517,1803.4,1803.2,5.657]
[1743405944298,11.09049,1803.4,1803.2,5.657]
[1743405944497,5.54538,1803.3,1803.2,5.657]
[1743405944963,0.1,1803.9,1803.2,7.0324]
[1743405945299,0.1,1803.9,1803.8,5.54385]
[1743405945593,0.1,1803.9,1803.8,11.17385]
[1743405947194,0.1,1803.9,1803.8,5.63]
[1743405947693,8.64354,1803.9,1803.8,5.625]
[1743405947898,11.50404467,1803.9,1803.8,5.625]
[1743405949771,5.54423,1803.7,1803.3,5.54535]
[1743405949965,5.54423,1803.7,1803.4,5.621]
[1743405949966,9.32777,1803.5,1803.4,5.621]
[1743405950166,3.0,1803.5,1803.4,5.621]
[1743405951373,8.54477,1803.5,1803.4,5.621]
[1743405952801,9.953737,1803.5,1803.3,5.614]
[1743405953173,8.54481,1803.5,1803.3,5.614]
[1743405953576,14.08977,1803.5,1803.3,5.614]
[1743405953972,8.54481,1803.5,1803.3,5.614]
[1743405954208,14.08974,1803.5,1803.3,5.614]
[1743405954706,5.54508,1803.4,1803.3,5.614]
[1743405955504,5.54551,1803.3,1803.1,32.01]
[1743405955691,11.5837333,1803.2,1803.1,5.605]
[1743405955897,0.783,1803.0,1802.4,32.003]
[1743405956102,8.5857333,1802.6,1802.5,5.614]
[1743405956886,12.3687333,1802.6,1802.5,5.614]
[1743405957205,14.16033463,1802.6,1802.5,5.614]
[1743405957404,8.54785,1802.5,1802.4,32.003]
[1743405957610,11.5858933,1802.5,1802.4,37.618]
[1743405957807,12.1418804,1802.5,1802.4,37.618]
[1743405958717,12.1418804,1802.5,1802.4,5.615]
[1743405959406,14.16829757,1802.5,1802.4,5.615]
[1743405960710,5.54908,1802.1,1802.0,5.604]
[1743405960877,9.1429204,1802.2,1802.0,5.604]
[1743405961313,5.54908,1802.1,1802.0,5.604]
[1743405961518,5.54947,1802.0,1801.8,0.8017]
[1743405961723,5.54947,1802.0,1801.9,5.601]
[1743405962420,11.09835,1802.1,1801.9,5.601]
[1743405962783,5.54908,1802.1,1801.9,5.601]
[1743405963087,6.5940304,1802.2,1801.9,5.601]
[1743405963287,8.54887,1802.2,1801.9,5.601]
[1743405963698,5.54931,1802.1,1801.9,5.601]
[1743405963898,5.54987,1801.9,1801.7,32.004]
[1743405964099,5.55,1801.8,1801.7,32.004]
[1743405964320,5.55,1801.8,1801.7,37.608]
[1743405965813,5.54987,1801.9,1801.7,37.603]
[1743405966229,11.09975,1801.9,1801.7,5.599]
[1743405966544,5.55,1801.8,1801.7,5.599]
[1743405966730,5.54987,1801.9,1801.7,5.599]
[1743405966930,11.0998,1801.9,1801.7,5.599]
[1743405967650,5.55,1801.8,1801.7,5.599]
[1743405968255,5.55058,1801.7,1801.5,14.5]
[1743405968408,3.5940304,1801.6,1801.0,11.10477]
[1743405968614,5.55165,1801.3,1801.2,5.592]
[1743405969421,8.55165,1801.3,1801.2,5.592]
[1743405969823,8.55185,1801.2,1801.1,0.1]
[1743405970144,14.6879304,1801.2,1801.1,0.1]
[1743405970824,15.09569049,1801.2,1801.1,0.1]
[1743405973515,15.09569049,1801.2,1801.1,1e-05]
[1743405973516,21.14568049,1801.2,1801.1,1e-05]
[1743405974523,5.55383,1800.6,1800.4,5.605]
[1743405974850,9.1480404,1800.5,1800.4,5.605]
[1743405975039,5.55442,1800.4,1800.3,5.6]
[1743405975443,5.55442,1800.4,1800.2,32.025]
[1743405975643,5.55442,1800.4,1800.2,37.631]
[1743405975826,3.5940304,1800.3,1800.2,37.631]
[1743405976026,9.1486504,1800.3,1800.2,37.631]
[1743405977950,3.5940304,1800.3,1800.2,37.631]
[1743405978255,9.1486504,1800.3,1800.2,37.631]
[1743405978468,12.1486504,1800.3,1800.2,37.631]
[1743405979252,12.1486504,1800.3,1800.2,5.606]
[1743405979469,13.91895744,1800.3,1800.2,5.606]
[1743405980365,5.55524,1800.1,1799.8,14.5]
[1743405980571,5.5556,1800.0,1799.9,5.593]
[1743405980956,9.1493804,1800.1,1799.9,5.593]
[1743405981173,5.55555,1800.0,1799.9,5.593]
[1743405981480,9.1493804,1800.1,1799.9,5.593]
[1743405981676,14.7048304,1800.1,1799.9,5.593]
[1743405981884,8.55555,1800.0,1799.9,5.593]
[1743405982287,5.55623,1799.8,1799.6,32.045]
[1743405982465,17.7066004,1799.8,1799.7,5.587]
[1743405982651,17.7066004,1799.8,1799.5,0.005]
[1743405982652,5.55679,1799.6,1799.5,0.005]
[1743405982851,12.1508204,1799.6,1799.5,0.005]
[1743405983660,12.9309204,1799.6,1799.5,0.005]
[1743405990806,3.0,1799.6,1799.5,0.005]
[1743405990974,8.55679,1799.6,1799.5,0.005]
[1743405991309,3.0,1799.6,1799.5,0.005]
[1743405991609,6.04999,1799.7,1799.5,6.38199]
[1743405991907,9.04999,1799.7,1799.6,5.59]
[1743405992110,14.60647,1799.7,1799.6,5.59]
[1743405992666,9.04999,1799.7,1799.6,5.59]
[1743405992904,3.0,1799.7,1799.6,5.59]
[1743405993109,8.55648,1799.7,1799.6,5.59]
[1743405993311,10.32715304,1799.7,1799.6,5.59]
[1743405994004,3.0,1799.7,1799.6,5.59]
[1743405994208,3.0,1799.7,1799.6,6.4099]
[1743405994713,3.0,1799.7,1799.6,5.59]
[1743405994999,3.0,1799.7,1799.6,11.14679]
[1743405995200,3.0,1799.7,1799.6,5.59]
[1743405996033,3.0,1799.7,1799.6,11.14679]
[1743405996603,3.0,1799.7,1799.6,5.59]
[1743405997097,3.0,1799.7,1799.6,11.14679]
[1743405997492,5.06451344,1800.1,1799.6,5.59]
[1743405997803,3.0,1800.0,1799.9,5.55586]
[1743405997993,3.0,1800.0,1799.8,11.92552]
[1743405998869,3.0,1800.0,1799.8,6.36947]
[1743405999069,3.0,1800.0,1799.9,5.55586]
[1743405999270,3.0,1800.0,1799.8,0.8135]
[1743405999599,3.0,1800.0,1799.8,6.36964]
[1743405999897,8.55524,1800.1,1799.8,0.8135]
[1743406000098,9.1498404,1800.0,1799.6,11.96022]
[1743406000264,8.55587,1799.9,1799.6,6.4035]
[1743406000993,8.55587,1799.9,1799.6,11.96011]
[1743406001167,3.0,1799.9,1799.6,11.96011]
[1743406001589,3.0,1799.8,1799.6,6.4035]
[1743406001981,3.0,1799.8,1799.6,11.96027]
[1743406002170,3.0,1799.8,1799.6,6.4035]
[1743406002503,5.5566,1799.7,1799.5,0.005]
[1743406002672,5.5566,1799.7,1799.6,5.574]
[1743406002872,13.0058624,1799.8,1799.6,5.574]
[1743406003298,3.855602,1799.8,1799.6,5.574]
[1743406003709,9.411872,1799.8,1799.6,5.574]
[1743406004604,14.968272,1799.8,1799.6,5.574]
[1743406004813,9.411872,1799.8,1799.6,5.574]
[1743406004979,8.55627,1799.8,1799.6,5.574]
[1743406005380,3.0,1799.8,1799.6,5.574]
[1743406005580,3.0,1799.8,1799.6,11.13068]
[1743406005802,3.0,1799.8,1799.6,5.574]
[1743406006010,3.0,1799.8,1799.6,5.55676]
[1743406006315,3.0,1799.8,1799.7,5.574]
[1743406006691,8.55617,1799.8,1799.7,5.574]
[1743406007005,14.1664044,1799.8,1799.7,5.574]
[1743406007782,13.62322161,1799.8,1799.7,5.574]
[1743406008387,11.60701761,1799.8,1799.7,5.574]
[1743406008914,11.60703477,1799.8,1799.7,5.574]
[1743406011216,6.05086477,1799.8,1799.7,5.574]
[1743406011603,3.0,1799.8,1799.7,6.3622]
[1743406011796,3.0,1799.8,1799.7,11.91868]
[1743406011997,3.42647476,1800.0,1799.8,5.55617]
[1743406012198,0.42647476,1800.0,1799.8,11.11222]
[1743406012401,9.09982525,1800.1,1799.8,11.11222]
[1743406012723,9.09982525,1800.1,1799.7,6.3622]
[1743406012724,8.60447525,1800.3,1800.1,0.7882]
[1743406012903,3.0,1800.2,1800.1,6.3622]
[1743406013106,8.55493,1800.2,1800.1,5.574]
[1743406015302,3.0,1800.2,1800.1,5.574]
[1743406016330,8.55493,1800.2,1800.1,5.574]
[1743406016510,10.27087053,1800.2,1800.1,5.574]
[1743406016706,11.04227053,1800.2,1800.1,5.574]
[1743406017032,5.55556,1800.0,1799.7,6.34455]
[1743406017227,3.04983525,1799.9,1799.8,5.574]
[1743406017527,3.04983525,1799.9,1799.8,11.13017]
[1743406017726,3.04983525,1800.1,1799.9,5.55581]
[1743406017932,3.04983525,1800.0,1799.9,5.55581]
[1743406018230,3.04983525,1800.0,1799.8,11.13001]
[1743406018606,8.60553525,1800.0,1799.8,5.574]
[1743406018804,3.04983525,1800.0,1799.8,5.574]
[1743406019216,3.04983525,1800.0,1799.8,11.13017]
[1743406019411,3.04983525,1800.0,1799.8,5.574]
[1743406019617,8.60548525,1800.0,1799.8,5.574]
[1743406019916,3.04983525,1800.0,1799.8,5.574]
[1743406020133,3.04983525,1800.0,1799.8,11.13016]
[1743406020432,3.72621129,1800.0,1799.8,5.574]
[1743406020804,9.28184129,1800.0,1799.8,5.574]
[1743406021138,6.04999,1800.4,1800.1,5.55507]
[1743406021336,3.0,1800.3,1800.2,11.12792]
[1743406021631,3.0,1800.3,1800.2,5.573]
[1743406022045,3.0,1800.3,1800.2,11.12793]
[1743406022270,3.04983525,1800.6,1800.2,11.91103]
[1743406022540,3.04983525,1800.8,1800.6,0.7831]
[1743406022714,3.0,1800.7,1800.6,6.3561]
[1743406023122,3.0,1800.7,1800.6,11.9098]
[1743406023333,3.0,1800.7,1800.6,6.3561]
[1743406023522,3.04983525,1800.8,1800.6,6.3561]
[1743406023728,3.0,1800.7,1800.6,6.3561]
[1743406024048,3.0,1800.7,1800.6,11.90558562]
[1743406025444,6.47136604,1800.9,1800.7,5.55334]
[1743406025749,3.6471366,1800.8,1800.6,6.35195562]
[1743406025916,3.04983525,1800.7,1800.6,6.35195562]
[1743406026909,3.04983525,1800.7,1800.6,5.573]
[1743406028325,11.60322525,1800.7,1800.6,5.573]
[1743406028553,5.55384,1800.6,1800.5,5.572]
[1743406028764,3.04983525,1800.6,1800.5,5.572]
[1743406029230,8.60353525,1800.6,1800.5,5.572]
[1743406029429,3.04983525,1800.6,1800.5,5.572]
[1743406029757,8.60353525,1800.6,1800.5,5.572]
[1743406030063,3.04983525,1800.6,1800.5,5.572]
[1743406031233,12.09982525,1800.8,1800.6,5.55356]
[1743406031479,12.09982525,1800.8,1800.5,17.46294]
[1743406031656,12.09982525,1800.8,1800.5,11.90899]
[1743406032243,17.65295525,1800.8,1800.5,11.90899]
[1743406032545,19.46040385,1800.8,1800.5,11.90899]
[1743406032975,3.04983525,1800.7,1800.5,5.572]
[1743406033176,8.60343525,1800.7,1800.5,5.572]
[1743406033474,14.15701525,1800.7,1800.5,5.572]
[1743406033646,14.96271525,1800.7,1800.5,5.572]
[1743406033849,0.42153079,1800.9,1800.5,6.3491]
[1743406034038,3.04983525,1801.2,1800.8,0.7771]
[1743406034234,3.0,1801.1,1800.9,11.12373]
[1743406035731,3.0,1801.1,1801.0,5.55247]
[1743406036232,3.0,1801.1,1800.9,5.571]
[1743406037165,3.0,1801.1,1800.9,11.12364]
[1743406038744,3.04983525,1801.0,1800.9,5.571]
[1743406038946,8.60230525,1801.0,1800.9,5.571]
[1743406039270,3.04983525,1801.0,1800.9,5.571]
[1743406039465,0.7982,1801.3,1800.9,5.571]
[1743406039671,3.04983525,1801.3,1801.0,6.3217]
[1743406039866,3.0,1801.4,1801.1,5.55213]
[1743406040165,7.46005625,1801.4,1801.1,11.10414]
[1743406040385,3.04983525,1801.4,1801.2,5.5517]
[1743406040678,6.04983525,1801.4,1801.3,5.575]
[1743406040883,11.60106525,1801.4,1801.3,5.575]
[1743406041051,5.55167,1801.3,1801.0,6.32186]
[1743406041271,5.55167,1801.3,1801.2,5.574]
[1743406041587,5.55167,1801.3,1801.0,11.87417]
[1743406041787,5.55167,1801.3,1801.2,5.571]
[1743406042000,11.60106525,1801.4,1801.2,5.571]
[1743406042366,17.15246525,1801.4,1801.2,5.57]
[1743406042877,11.60106525,1801.4,1801.2,5.57]
[1743406043590,13.31627078,1801.4,1801.1,11.10417]
[1743406043906,3.04983525,1801.6,1801.3,5.55154]
[1743406044066,3.0,1801.5,1801.3,6.32094]
[1743406045294,3.0,1801.5,1801.3,0.7694]
[1743406045472,3.04983525,1801.4,1801.2,5.57]
[1743406045671,10.01629578,1801.4,1801.2,5.57]
[1743406045866,4.46505578,1801.4,1801.2,5.57]
[1743406046463,3.04983525,1801.3,1801.1,0.7694]
[1743406046675,8.60146525,1801.3,1801.2,5.57]
[1743406047568,11.60146525,1801.3,1801.2,5.57]
[1743406047895,13.53785083,1801.3,1801.2,5.57]
[1743406048097,7.98622083,1801.3,1801.2,5.57]
[1743406048584,13.53776083,1801.3,1801.2,5.57]
[1743406048782,7.98622083,1801.3,1801.2,5.57]
[1743406049387,13.53776083,1801.3,1801.2,5.57]
[1743406049869,5.55194,1801.2,1800.9,0.8099]
[1743406050070,3.60502925,1801.1,1801.0,5.569]
[1743406050596,5.55308,1800.8,1800.7,5.569]
[1743406050895,5.55308,1800.8,1800.4,32.054]
[1743406050896,5.55401,1800.5,1800.4,32.054]
[1743406051061,5.55432,1800.4,1800.1,0.8285]
[1743406051260,14.15873525,1800.4,1800.2,5.569]
[1743406051567,14.15867525,1800.4,1800.2,5.569]
[1743406051886,8.60415525,1800.4,1800.2,5.569]
[1743406052409,5.5548,1800.3,1800.1,0.8285]
[1743406052565,8.60463525,1800.3,1800.2,5.57]
[1743406052899,3.04983525,1800.3,1800.2,5.57]
[1743406053070,8.60445525,1800.3,1800.0,5.55536]
[1743406053269,8.60445525,1800.3,1800.1,5.57]
[1743406053899,14.15926525,1800.3,1800.1,5.57]
[1743406054093,8.60445525,1800.3,1800.1,5.57]
[1743406054791,3.04983525,1800.3,1800.1,5.57]
[1743406054992,10.83938778,1800.4,1800.1,5.57]
[1743406055683,10.83938778,1800.4,1800.1,11.12523]
[1743406056012,3.0,1800.4,1800.3,6.38312]
[1743406056178,3.0,1800.4,1800.3,0.8285]
[1743406056586,6.04983525,1800.4,1800.1,11.12521]
[1743406056902,11.60426525,1800.4,1800.1,11.95371]
[1743406057479,3.04983525,1800.2,1799.9,0.8285]
[1743406057685,3.04983525,1800.0,1799.9,0.8285]
[1743406057910,3.04983525,1800.0,1799.9,6.3985]
[1743406058113,8.60518525,1800.1,1799.9,6.3985]
[1743406058615,3.04983525,1800.1,1799.9,6.3985]
[1743406059125,15.02102678,1800.1,1799.9,0.8285]
[1743406059310,3.04983525,1800.0,1799.7,43.98926]
[1743406059510,3.04983525,1800.0,1799.8,11.12707]
[1743406059712,8.60508525,1800.1,1799.8,11.12707]
[1743406059888,8.60508525,1800.1,1799.8,5.571]
[1743406060090,8.60508525,1800.1,1799.8,11.12713]
[1743406060420,8.60508525,1800.1,1799.8,5.571]
[1743406060611,8.60508525,1800.1,1799.8,11.12714]
[1743406060924,3.04983525,1800.1,1799.8,11.12704]
[1743406061928,3.0,1800.1,1799.9,5.55584]
[1743406062288,3.0,1800.1,1799.9,11.11157]
[1743406062526,3.0,1800.1,1799.9,5.55573]
[1743406063226,8.55526,1800.1,1799.8,5.571]
[1743406063527,8.55526,1800.1,1799.8,11.12706]
[1743406064022,15.82669453,1800.1,1799.8,11.12706]
[1743406064322,5.55586,1799.9,1799.8,5.571]
[1743406064728,14.16115525,1800.0,1799.8,5.571]
[1743406064895,8.60542525,1800.0,1799.8,5.571]
[1743406065240,3.04983525,1800.0,1799.8,11.12714]
[1743406065821,3.0,1800.1,1800.0,5.55555]
[1743406066009,3.0,1800.1,1799.9,5.55572]
[1743406066337,3.0,1800.1,1799.9,11.11143]
[1743406066640,3.0,1800.1,1799.9,5.55571]
[1743406066791,3.0,1800.1,1799.9,11.11142]
[1743406066995,3.04983525,1800.3,1800.0,5.55555]
[1743406067196,3.0,1800.2,1800.1,6.33745]
[1743406067416,3.0,1800.2,1800.1,11.90845]
[1743406067599,3.0,1800.2,1800.1,6.3533]
[1743406067833,3.0,1800.2,1800.1,5.571]
[1743406067992,8.55493,1800.2,1800.1,5.571]
[1743406068192,10.27087653,1800.2,1800.1,5.571]
[1743406069331,3.0,1800.2,1800.1,5.571]
[1743406070023,3.04983525,1800.3,1800.1,5.571]
[1743406070196,14.65390525,1800.5,1800.1,5.571]
[1743406070391,8.55435,1800.4,1800.1,11.12615]
[1743406070632,3.04983525,1800.3,1800.1,11.12615]
[1743406070941,3.0,1800.4,1800.1,16.6813]
[1743406071232,3.0,1800.4,1800.2,5.55491]
[1743406071435,3.0,1800.4,1800.1,11.12615]
[1743406071605,3.0,1800.4,1800.1,11.12614]
[1743406071795,11.60416525,1800.4,1800.1,11.12614]
[1743406072098,11.60416525,1800.4,1800.1,16.68127]
[1743406072298,6.04983525,1800.4,1800.2,5.55483]
[1743406072524,11.60424525,1800.4,1800.1,5.571]
[1743406072718,7.76566678,1800.4,1800.1,5.571]
[1743406072919,11.60433525,1800.4,1800.1,11.12621]
[1743406073225,11.60433525,1800.4,1800.1,16.68136]
[1743406073530,6.04983525,1800.4,1800.2,5.55491]
[1743406073897,6.04983525,1800.4,1800.2,11.10982]
[1743406074097,6.04983525,1800.4,1800.2,11.89212]
[1743406074308,14.65300525,1800.8,1800.5,5.5539]
[1743406074529,3.04983525,1801.0,1800.7,5.55339]
[1743406074828,3.60502925,1801.1,1800.8,5.571]
[1743406075033,3.04983525,1801.3,1801.1,5.55216]
[1743406075231,3.90994678,1801.3,1801.2,5.571]
[1743406075399,6.90994678,1801.3,1801.2,5.571]
[1743406075914,12.46148678,1801.3,1801.2,5.571]
[1743406076134,5.55254,1801.0,1800.8,0.7823]